bitfinex/quotes_ETHUSD_20250131
["timestamp","ask_amount","ask_price","bid_price","bid_amount"]
[1738334802401,4.20913508,3352.9,3352.5,0.1734621]
[1738334802742,2.98265,3352.8,3352.5,0.1734621]
[1738334803250,3.73475,3353.4,3352.7,0.8083]
[1738334803404,4.108225,3353.4,3352.8,2.98252]
[1738334803744,4.108225,3353.4,3352.5,3.1562721]
[1738334803745,0.015,3353.2,3352.5,0.1734621]
[1738334803912,2.98271,3352.7,3352.5,0.1734621]
[1738334804123,2.98275,3352.6,3352.5,0.1734621]
[1738334804318,3.579296,3352.6,3352.5,0.1734621]
[1738334804801,1.38583706,3352.6,3352.5,0.1734621]
[1738334805138,3.77954106,3352.6,3352.5,0.1734621]
[1738334805504,6.77954106,3352.6,3352.5,0.1734621]
[1738334805703,6.74225,3352.6,3352.5,0.1734621]
[1738334806540,6.74975,3352.6,3352.5,0.1734621]
[1738334806720,7.29975,3352.6,3352.5,0.1734621]
[1738334806932,8.97439366,3352.6,3352.5,2.1e-06]
[1738334807250,2.98384,3351.4,3350.8,3.7401]
[1738334807544,2.98382,3351.5,3350.8,0.7558]
[1738334807545,2.98401,3351.2,3350.8,0.7558]
[1738334807745,2.98401,3351.2,3350.9,0.0666962]
[1738334807953,2.98418,3351.0,3350.9,0.0666962]
[1738334808107,2.98418,3351.0,3350.5,0.7941]
[1738334808465,2.9838,3351.5,3350.8,2.9843]
[1738334808757,3.77056,3351.7,3351.2,2.98399]
[1738334808935,2.98356,3351.7,3351.1,2.98406]
[1738334809255,5.98347,3351.8,3351.2,0.06667158]
[1738334809641,2.98357,3351.7,3351.2,0.06667158]
[1738334809807,2.98366,3351.6,3350.8,0.8332]
[1738334810003,0.03730173,3351.7,3350.9,0.06714981]
[1738334810231,3.74191,3352.0,3351.3,2.98391]
[1738334810429,3.0,3351.9,3351.4,0.06763726]
[1738334810727,0.04479896,3351.9,3351.4,0.06763726]
[1738334810973,2.98373,3351.5,3351.4,0.06763726]
[1738334811271,2.98373,3351.5,3351.4,0.0676412]
[1738334811484,2.98373,3351.5,3350.8,3.81749]
[1738334811627,2.98376,3351.5,3350.9,2.98423]
[1738334811827,2.98376,3351.5,3351.0,0.06767402]
[1738334812328,2.98359,3351.7,3351.0,0.06767402]
[1738334812549,5.9834,3351.9,3351.3,2.98388]
[1738334812874,2.98347,3351.8,3351.4,0.0676412]
[1738334813570,3.6742,3351.9,3351.4,0.0676412]
[1738334813734,6.65762,3351.9,3351.4,0.0676412]
[1738334813936,0.7646,3352.4,3351.5,0.802]
[1738334814140,2.98292,3352.5,3351.7,2.98352]
[1738334814434,2.98292,3352.5,3351.9,2.98333]
[1738334814635,2.98294,3352.4,3352.0,0.06743813]
[1738334815454,2.98304,3352.3,3352.0,0.06743813]
[1738334815650,0.03729246,3352.2,3351.7,2.98352]
[1738334815960,2.98294,3352.4,3351.9,2.98337]
[1738334816366,2.98294,3352.4,3352.0,0.06743813]
[1738334817274,3.0,3352.6,3352.2,2.98311]
[1738334817435,5.96511,3352.9,3352.2,2.98311]
[1738334817644,2.98274,3352.7,3352.3,0.06741354]
[1738334817840,2.98319,3352.2,3351.6,2.9836]
[1738334818191,2.98319,3352.2,3351.7,0.06472781]
[1738334818338,2.98338,3351.9,3351.7,0.06472781]
[1738334818538,5.98347,3351.8,3351.7,0.06472781]
[1738334818786,2.98368,3351.6,3351.1,0.8006]
[1738334818982,2.98357,3351.7,3351.2,2.984]
[1738334819197,2.98329,3352.0,3351.5,2.98371]
[1738334819544,2.98329,3352.0,3351.6,0.06475176]
[1738334819782,2.98349,3351.8,3351.6,0.06475176]
[1738334819939,3.281619,3352.0,3351.3,2.98391]
[1738334820144,3.281619,3352.0,3351.7,0.06489711]
[1738334820344,3.281619,3352.0,3351.3,2.98391]
[1738334820546,5.98344,3351.9,3351.8,0.06488891]
[1738334820740,2.98349,3351.8,3351.2,2.98398]
[1738334820970,2.98349,3351.8,3351.3,2.98387]
[1738334821170,2.98356,3351.7,3351.3,0.06495749]
[1738334821537,2.98371,3351.6,3351.1,0.8006]
[1738334821793,2.98371,3351.6,3351.4,0.06494928]
[1738334821939,0.62952119,3351.7,3351.1,0.8006]
[1738334821940,0.62952119,3351.7,3351.2,2.98394]
[1738334822140,3.78714,3352.4,3351.1,0.8006]
[1738334822141,0.8042,3352.4,3351.4,3.48136655]
[1738334822383,2.98314,3352.2,3351.6,2.98356]
[1738334822592,0.60033857,3352.1,3351.5,0.86692927]
[1738334822760,0.03729491,3352.2,3351.5,0.86692927]
[1738334822761,2.9828,3352.6,3351.8,2.98341]
[1738334822965,2.9828,3352.6,3352.0,2.98325]
[1738334823176,0.5822351,3353.0,3351.9,0.06491615]
[1738334823387,2.98224,3353.2,3352.2,3.48136655]
[1738334823544,2.9829,3352.5,3352.0,0.86500795]
[1738334823760,2.9829,3352.5,3351.4,3.48136655]
[1738334823761,2.98293,3352.4,3352.3,0.06476916]
[1738334824095,2.98312,3352.2,3351.5,3.79512]
[1738334824296,2.98296,3352.4,3351.7,2.9835]
[1738334824474,2.98296,3352.4,3351.9,2.98333]
[1738334824780,0.596574,3352.4,3351.9,2.98333]
[1738334824986,2.98278,3352.6,3352.0,2.98329]
[1738334825159,2.9829,3352.5,3351.8,2.98339]
[1738334825363,2.98278,3352.6,3351.9,2.98337]
[1738334825566,2.98295,3352.4,3351.9,2.98331]
[1738334825788,3.579523,3352.4,3351.9,2.98331]
[1738334826003,5.98268,3352.7,3352.1,2.98314]
[1738334826362,0.03728931,3352.6,3352.1,2.98314]
[1738334826568,2.98338,3351.9,3351.3,2.98388]
[1738334826760,3.02082821,3351.8,3351.2,0.7556]
[1738334826952,2.98357,3351.7,3351.2,0.7556]
[1738334827149,3.281718,3351.9,3351.2,3.73952]
[1738334827362,2.98359,3351.7,3351.2,3.73952]
[1738334827661,2.98359,3351.7,3350.2,6.124]
[1738334827662,2.98391,3351.4,3350.7,2.98441]
[1738334827856,2.98406,3351.2,3350.5,2.98456]
[1738334828054,3.02145648,3351.1,3350.5,2.98456]
[1738334828598,3.02145648,3351.1,3350.4,0.8109]
[1738334828599,0.03730723,3351.1,3350.4,0.8109]
[1738334828767,2.98406,3351.2,3350.7,2.98442]
[1738334828964,3.70053679,3351.2,3350.6,2.98447]
[1738334829186,3.02136607,3351.2,3350.6,2.98447]
[1738334829370,2.98409,3351.1,3350.6,2.98447]
[1738334829562,2.98409,3351.1,3350.5,2.98461]
[1738334829770,2.98409,3351.1,3350.6,2.98453]
[1738334830066,3.77043,3351.3,3350.6,2.98453]
[1738334830289,2.98407,3351.2,3350.6,2.98453]
[1738334830481,2.98412,3351.1,3350.6,2.98453]
[1738334830685,3.77043,3351.3,3350.7,2.98444]
[1738334830853,2.98509,3350.0,3349.5,0.8064]
[1738334831057,0.7545,3351.1,3349.5,0.8064]
[1738334831358,2.98431,3350.9,3350.2,2.98487]
[1738334831707,2.98471,3350.5,3349.7,3.48136655]
[1738334831997,2.98471,3350.5,3349.8,2.98519]
[1738334832207,2.98487,3350.3,3349.6,2.98541]
[1738334832364,2.98495,3350.2,3349.6,2.98541]
[1738334832565,3.02170667,3350.8,3349.7,3.48136655]
[1738334832566,2.98455,3350.6,3349.7,3.48136655]
[1738334832782,2.98439,3350.8,3350.2,2.98489]
[1738334832966,5.98448,3350.7,3349.9,2.98509]
[1738334833171,5.98448,3350.7,3350.1,2.98491]
[1738334833172,3.0,3350.7,3350.1,2.98491]
[1738334833505,2.98454,3350.6,3350.0,2.98507]
[1738334833994,3.70013924,3350.8,3350.0,2.98507]
[1738334834300,2.98403,3351.2,3350.5,2.93456]
[1738334834506,2.9841,3351.1,3350.5,2.93456]
[1738334834999,1.35559589,3351.9,3351.0,0.8071]
[1738334835153,0.7693,3352.3,3351.7,2.98355]
[1738334835362,1.144506,3352.3,3352.1,2.98313]
[1738334835602,2.98205,3353.4,3352.1,2.98313]
[1738334835603,2.98268,3352.7,3352.1,2.98313]
[1738334835904,2.98232,3353.1,3352.2,0.05117633]
[1738334836071,2.9824,3353.0,3352.2,3.03424633]
[1738334836270,0.29824,3352.9,3352.2,3.03424633]
[1738334836505,1.40255928,3353.3,3352.2,3.53254288]
[1738334836804,2.98232,3353.1,3352.2,3.53254288]
[1738334837103,2.98276,3352.6,3352.2,0.05117633]
[1738334837357,0.596534,3352.5,3352.2,0.05117633]
[1738334837467,0.596534,3352.5,3352.1,2.9832]
[1738334837808,0.596534,3352.5,3351.9,3.80438]
[1738334837809,2.98276,3352.6,3352.2,0.05069788]
[1738334838012,2.98302,3352.3,3352.2,0.05069788]
[1738334838310,2.98348,3351.8,3351.1,3.81658]
[1738334838472,2.98365,3351.6,3351.1,3.81658]
[1738334838675,2.98362,3351.7,3351.2,0.04874186]
[1738334839004,3.580321,3351.7,3351.2,0.04874186]
[1738334839171,0.596701,3351.7,3351.2,3.03272186]
[1738334839377,3.0,3352.0,3351.4,2.9838]
[1738334839790,3.02068821,3351.9,3351.5,0.04886997]
[1738334839990,2.98364,3351.6,3351.5,0.04886997]
[1738334840190,3.80438,3351.7,3350.7,3.74963]
[1738334840191,2.98382,3351.5,3350.7,3.74963]
[1738334840369,0.0373037,3351.4,3350.7,2.98443]
[1738334840574,2.98398,3351.3,3350.7,2.98443]
[1738334840773,2.98398,3351.3,3350.5,2.98459]
[1738334841011,0.63943447,3351.2,3350.5,2.98459]
[1738334841172,2.98418,3351.0,3350.3,3.81407]
[1738334841502,2.9842,3351.0,3350.3,3.81407]
[1738334841712,3.02150767,3351.0,3350.4,2.98468]
[1738334842008,2.98445,3350.8,3350.2,2.98488]
[1738334842685,2.98445,3350.8,3350.0,2.98501]
[1738334843009,2.9843,3350.9,3350.4,2.98469]
[1738334843220,2.98388,3351.4,3350.7,2.98439]
[1738334843363,0.597514,3351.4,3350.6,2.98449]
[1738334843558,2.98406,3351.2,3350.6,2.98449]
[1738334843992,0.597514,3351.4,3350.7,2.98443]
[1738334844298,0.597514,3351.4,3350.6,2.98449]
[1738334844502,2.98393,3351.3,3350.8,2.98431]
[1738334844661,0.8283,3352.0,3351.5,2.98368]
[1738334844870,0.8283,3352.0,3350.9,3.48136655]
[1738334844871,0.8283,3352.4,3351.7,2.98348]
[1738334845293,0.8283,3352.8,3351.6,3.48136655]
[1738334845492,0.8283,3353.3,3351.9,3.48136655]
[1738334845662,2.98248,3353.0,3352.4,2.98293]
[1738334845880,2.98249,3352.9,3352.2,2.98304]
[1738334846075,2.98238,3353.1,3352.4,2.98288]
[1738334846414,2.98228,3353.2,3352.6,2.98274]
[1738334846573,2.98244,3353.0,3352.3,2.98297]
[1738334846899,5.98226,3353.2,3352.5,2.98283]
[1738334847105,0.979272,3353.1,3352.6,2.98274]
[1738334847282,2.98238,3353.1,3352.4,2.98292]
[1738334847486,2.98271,3352.7,3352.1,2.98317]
[1738334847715,2.9828,3352.6,3351.7,2.98349]
[1738334847914,2.983,3352.4,3351.7,2.98349]
[1738334848113,2.98336,3352.0,3351.2,2.98392]
[1738334848328,2.98336,3352.0,3351.1,0.7771]
[1738334848329,3.0,3352.0,3351.1,0.7771]
[1738334848638,2.98317,3352.2,3351.3,3.03244139]
[1738334848842,0.03729809,3351.9,3351.5,2.98366]
[1738334849144,2.9833,3352.0,3351.6,0.04872079]
[1738334849505,2.98356,3351.7,3351.6,0.04872079]
[1738334849708,3.61755958,3351.7,3351.6,0.04872079]
[1738334849909,2.98399,3351.3,3350.6,3.7978]
[1738334850244,2.98411,3351.1,3350.5,2.98456]
[1738334850542,2.98425,3351.0,3350.3,2.98477]
[1738334850703,3.0,3350.9,3350.3,2.98477]
[1738334850908,3.0,3350.9,3350.4,2.98471]
[1738334851351,3.0,3350.9,3350.5,2.98461]
[1738334851713,3.0,3351.1,3350.5,2.98461]
[1738334851918,5.98412,3351.1,3350.5,2.98461]
[1738334852118,3.73144024,3351.1,3350.5,2.98461]
[1738334852353,2.98393,3351.3,3350.8,2.98432]
[1738334852554,2.98393,3351.3,3350.4,2.98465]
[1738334852715,2.98414,3351.1,3350.9,0.04933042]
[1738334852909,2.98393,3351.3,3350.5,2.98455]
[1738334852910,2.98407,3351.2,3350.5,2.98455]
[1738334853135,2.98417,3351.1,3351.0,0.04932221]
[1738334853412,3.0289778,3351.1,3351.0,0.04932221]
[1738334853616,0.8369078,3351.1,3349.6,2.98542]
[1738334853822,0.8369078,3351.1,3349.7,0.04820059]
[1738334853823,2.98486,3350.3,3349.7,0.04820059]
[1738334854025,2.98507,3350.0,3349.4,3.79629]
[1738334854318,2.98507,3350.0,3349.5,0.04821701]
[1738334854850,2.98463,3350.5,3349.8,2.98516]
[1738334855065,0.596911,3350.5,3349.9,0.04818417]
[1738334855218,0.596911,3350.5,3350.0,2.98505]
[1738334855419,3.0,3350.4,3350.1,0.04816775]
[1738334855729,3.0,3350.6,3350.0,2.98504]
[1738334855934,2.98453,3350.7,3350.2,0.04815954]
[1738334856111,2.98453,3350.7,3350.1,3.03308775]
[1738334856314,3.37764,3350.8,3350.3,0.04815133]
[1738334856615,0.7846,3351.1,3350.4,3.03277312]
[1738334856816,2.98429,3350.9,3350.4,0.04814312]
[1738334857658,3.02167026,3350.8,3350.4,0.04814312]
[1738334857963,2.98429,3350.9,3350.0,2.98507]
[1738334858264,3.02168078,3350.8,3350.0,2.98507]
[1738334858416,2.98454,3350.6,3350.1,0.04816775]
[1738334858819,3.0,3350.7,3350.1,3.03313775]
[1738334859014,2.98465,3350.5,3350.1,0.04816775]
[1738334859220,0.03731365,3350.4,3349.8,2.98518]
[1738334859433,0.03731365,3350.4,3349.9,0.04818417]
[1738334859659,2.98495,3350.2,3349.9,0.04818417]
[1738334859872,2.98495,3350.2,3349.6,2.9854]
[1738334860074,2.98479,3350.4,3349.7,3.03348059]
[1738334860781,2.98456,3350.6,3349.7,3.03348059]
[1738334860782,0.38062024,3350.9,3349.7,0.04820059]
[1738334860924,3.02150178,3351.0,3350.3,2.98479]
[1738334861124,2.98419,3351.0,3350.3,2.98479]
[1738334861362,2.98419,3351.0,3350.4,3.03279312]
[1738334861559,0.7846,3351.1,3350.4,0.04814312]
[1738334861560,2.98462,3350.6,3350.4,0.04814312]
[1738334861933,0.03731539,3350.5,3349.7,2.98531]
[1738334862164,0.0075,3350.4,3349.5,0.8043]
[1738334862331,2.98507,3350.1,3349.8,0.04819238]
[1738334862528,0.03731893,3350.0,3349.1,0.1734621]
[1738334862738,2.98534,3349.7,3349.1,0.1734621]
[1738334862942,3.0,3349.8,3349.1,3.1592721]
[1738334863167,3.0,3349.8,3349.3,2.98567]
[1738334863483,2.98484,3350.3,3349.6,2.98542]
[1738334863636,3.361144,3350.2,3349.5,2.98551]
[1738334863986,3.75322,3351.4,3349.8,2.98523]
[1738334864164,3.75322,3351.4,3349.4,0.8137]
[1738334864165,2.98428,3350.9,3350.2,2.98488]
[1738334864536,2.98448,3350.7,3350.2,0.8235]
[1738334864737,2.98464,3350.5,3349.9,2.98514]
[1738334865043,2.98464,3350.5,3349.2,3.1987]
[1738334865044,2.98548,3349.6,3349.0,2.98594]
[1738334865246,0.0075,3350.2,3348.6,0.8235]
[1738334865247,0.7911,3349.4,3348.6,0.8235]
[1738334865433,3.0,3349.5,3348.8,2.98608]
[1738334865733,2.98544,3349.6,3348.9,2.98599]
[1738334865840,2.98544,3349.6,3349.0,2.98592]
[1738334865841,3.0,3349.5,3349.0,2.98592]
[1738334866075,0.7585,3350.6,3349.1,0.78799931]
[1738334866259,2.98486,3350.3,3349.2,0.7798]
[1738334866457,2.98505,3350.1,3349.2,0.7798]
[1738334866687,2.98508,3350.0,3349.4,2.98558]
[1738334867515,2.98517,3349.9,3349.4,2.98558]
[1738334867813,2.98543,3349.6,3349.5,0.04567033]
[1738334867995,2.98527,3349.8,3349.5,0.04567033]
[1738334868187,2.98527,3349.8,3349.2,2.98577]
[1738334868505,2.98543,3349.6,3349.1,0.1734621]
[1738334868708,3.582307,3349.8,3349.3,0.04568675]
[1738334868873,3.582307,3349.8,3349.2,3.03145497]
[1738334869073,2.98544,3349.6,3349.2,0.04569497]
[1738334869477,3.0,3349.5,3349.2,0.04569497]
[1738334870169,2.98569,3349.3,3349.2,0.04569497]
[1738334870379,5.98569,3349.3,3349.2,0.04569497]
[1738334870626,2.98578,3349.2,3349.1,0.1734621]
[1738334870998,2.98578,3349.2,3349.1,0.21753853]
[1738334872215,3.73698,3349.9,3349.1,0.21753853]
[1738334872386,2.98503,3350.1,3349.5,2.98546]
[1738334872725,2.98498,3350.1,3349.6,0.04403537]
[1738334872885,2.98516,3349.9,3349.6,0.04403537]
[1738334873086,2.98516,3349.9,3349.3,2.98567]
[1738334873289,2.98516,3349.9,3349.4,0.04405179]
[1738334873838,2.98516,3349.9,3349.4,3.02964179]
[1738334873992,2.98502,3350.1,3349.4,3.02964179]
[1738334874523,2.98518,3349.9,3349.4,3.02964179]
[1738334875122,0.519,3351.5,3349.4,0.04405179]
[1738334875123,3.73616,3350.8,3349.4,0.04405179]
[1738334875322,3.73616,3350.8,3349.6,2.98536]
[1738334875323,2.985,3350.1,3349.6,2.98536]
[1738334875488,2.9849,3350.2,3349.6,2.98536]
[1738334875684,2.9849,3350.2,3349.7,0.04402716]
[1738334875892,2.98457,3350.6,3350.0,2.98501]
[1738334876185,2.9844,3350.8,3350.1,0.04404524]
[1738334876590,0.03731147,3350.7,3350.1,0.04404524]
[1738334876788,2.98396,3351.3,3350.1,0.04404524]
[1738334876789,2.98489,3350.2,3350.1,0.04404524]
[1738334876992,2.98512,3350.0,3349.4,3.74749]
[1738334877209,3.283379,3350.2,3349.4,3.74749]
[1738334877420,2.98489,3350.2,3349.6,2.98541]
[1738334877599,3.0,3350.1,3349.6,2.98541]
[1738334877802,2.98508,3350.0,3349.5,2.9855]
[1738334878249,2.98508,3350.0,3349.4,0.7619]
[1738334878543,2.9854,3349.7,3349.0,3.77538]
[1738334878916,3.0,3349.8,3349.2,2.98578]
[1738334879117,3.0,3349.8,3349.4,2.98555]
[1738334879334,2.98501,3350.1,3349.4,2.98555]
[1738334879642,2.98552,3349.5,3349.0,0.7895]
[1738334879843,2.98539,3349.7,3349.1,3.1593221]
[1738334880050,0.298501,3350.1,3349.1,0.1734621]
[1738334880051,2.98523,3349.9,3349.1,0.1734621]
[1738334880209,2.98507,3350.1,3349.4,2.9856]
[1738334880406,0.03731823,3350.0,3349.1,0.1734621]
[1738334880617,2.98578,3349.2,3349.1,0.1734621]
[1738334880834,3.0,3349.5,3349.1,0.1734621]
[1738334881018,5.98553,3349.5,3349.1,0.1734621]
[1738334881339,5.98557,3349.5,3349.1,0.1734621]
[1738334881582,2.98561,3349.4,3349.1,0.1734621]
[1738334881753,3.37797,3349.6,3349.1,3.1593321]
[1738334882044,0.7511,3350.1,3349.5,2.98543]
[1738334882219,2.98508,3350.0,3349.5,2.98543]
[1738334882403,3.0,3350.1,3349.6,2.98543]
[1738334882609,0.03731771,3350.0,3349.4,3.73914]
[1738334882838,2.98506,3350.1,3349.7,0.04425823]
[1738334883010,0.298506,3350.0,3349.5,2.98545]
[1738334883201,0.0373177,3349.9,3349.8,0.04425002]
[1738334883431,3.0,3350.0,3349.5,2.98545]
[1738334883639,2.98516,3349.9,3349.8,0.04425002]
[1738334883815,3.88218,3349.9,3349.4,3.73915]
[1738334884026,3.88218,3349.9,3349.8,0.04425002]
[1738334884349,3.77305,3350.5,3349.8,3.02947002]
[1738334884560,2.98465,3350.5,3349.8,2.98522]
[1738334884851,0.8036,3350.9,3350.3,2.98474]
[1738334885025,2.98424,3351.0,3350.1,0.818]
[1738334885220,2.98445,3350.7,3350.4,0.04398538]
[1738334885453,2.98507,3350.1,3349.8,0.8016]
[1738334885763,2.98522,3349.9,3349.3,0.7562]
[1738334885950,2.98491,3350.2,3349.6,2.98536]
[1738334886142,2.98449,3350.7,3349.3,0.7562]
[1738334886332,2.98449,3350.7,3350.1,3.74118]
[1738334886535,5.98454,3350.6,3350.1,0.7562]
[1738334886735,2.98482,3350.3,3349.4,2.9856]
[1738334886936,2.98482,3350.3,3349.6,2.98537]
[1738334887536,0.32724942,3350.6,3349.5,2.98544]
[1738334887537,2.98506,3350.1,3349.5,2.98544]
[1738334888136,3.0,3350.2,3349.5,2.98544]
[1738334888475,5.9849,3350.2,3349.5,2.98544]
[1738334888644,2.98507,3350.0,3349.5,2.98544]
[1738334889233,2.98507,3350.0,3349.3,6.72748]
[1738334889437,3.0,3349.8,3349.3,0.7562]
[1738334889673,2.98538,3349.7,3349.1,3.1592921]
[1738334889881,0.597057,3349.7,3349.1,0.1734621]
[1738334890047,2.98503,3350.1,3349.5,2.98549]
[1738334890248,3.0,3349.9,3349.4,2.9856]
[1738334890571,6.964301,3349.9,3349.1,3.1592621]
[1738334890880,2.98536,3349.7,3349.1,0.1734621]
[1738334891091,0.03732143,3349.6,3349.2,2.98575]
[1738334891382,2.98525,3349.8,3349.3,2.98568]
[1738334891532,3.9802051,3349.8,3349.2,2.98576]
[1738334891974,3.9802051,3349.8,3349.3,2.98569]
[1738334892180,3.0,3349.9,3349.3,2.98569]
[1738334892334,2.98539,3349.7,3349.1,3.1593321]
[1738334892537,0.8003,3349.3,3349.1,0.1734621]
[1738334892767,3.364371,3349.2,3349.1,0.1734621]
[1738334892976,2.98578,3349.2,3349.1,0.1734621]
[1738334893165,2.98578,3349.2,3349.1,0.2172997]
[1738334893565,0.8236,3349.9,3349.2,2.98577]
[1738334893778,2.985,3350.1,3349.4,2.98554]
[1738334893977,2.98517,3349.9,3349.4,2.98554]
[1738334894283,2.98517,3349.9,3349.5,0.04402012]
[1738334894483,2.98481,3350.3,3349.5,0.04402012]
[1738334894638,0.8236,3350.7,3349.5,0.04402012]
[1738334894838,2.98463,3350.5,3349.8,2.98517]
[1738334895039,2.98463,3350.5,3349.9,0.04399511]
[1738334895582,2.98459,3350.6,3350.0,2.98506]
[1738334895739,2.98459,3350.6,3350.0,3.0290469]
[1738334895944,2.98438,3350.8,3350.2,2.98483]
[1738334896144,3.0,3350.9,3350.4,2.98471]
[1738334896608,3.0,3350.9,3350.5,0.04369133]
[1738334897292,2.98419,3351.0,3350.5,0.04369133]
[1738334897490,0.7708,3351.1,3350.6,2.98446]
[1738334897653,5.98409,3351.1,3350.5,0.04369133]
[1738334897983,2.9842,3351.0,3350.6,0.04349521]
[1738334898199,2.98445,3350.7,3350.6,0.04349521]
[1738334898359,6.9163629,3351.1,3350.6,0.04349521]
[1738334898690,2.98424,3351.0,3350.5,2.9846]
[1738334898841,2.98424,3351.0,3350.7,0.04342437]
[1738334899045,0.03730871,3350.9,3350.6,0.04343258]
[1738334899278,0.03730871,3350.9,3350.7,0.04342437]
[1738334899472,2.98436,3350.8,3350.7,0.04342437]
[1738334899654,2.98471,3350.5,3349.8,2.98523]
[1738334899854,2.98471,3350.5,3349.9,2.98514]
[1738334900193,0.673779,3350.5,3349.9,2.98514]
[1738334900377,1.02546619,3351.0,3350.4,2.98464]
[1738334900694,2.98387,3351.4,3350.4,2.98471]
[1738334900986,2.98406,3351.2,3350.6,2.98446]
[1738334901357,3.02140596,3351.1,3350.5,2.98457]
[1738334901572,2.98406,3351.2,3350.5,2.98457]
[1738334901746,5.98392,3351.3,3350.7,2.98439]
[1738334902147,3.0,3351.3,3350.7,2.98439]
[1738334902381,3.0,3351.3,3350.7,5.96877]
[1738334902580,0.0075,3351.9,3350.1,2.98495]
[1738334902581,0.8286,3352.1,3351.6,2.98356]
[1738334902750,2.98309,3352.3,3351.6,2.98356]
[1738334902954,2.98317,3352.2,3351.4,2.98381]
[1738334903153,2.98317,3352.2,3351.2,2.98398]
[1738334903154,2.98335,3352.0,3351.3,2.98389]
[1738334903373,0.60037764,3351.9,3351.4,2.9838]
[1738334903893,2.98357,3351.7,3350.8,3.79453]
[1738334904155,2.98341,3351.9,3350.8,0.8102]
[1738334904307,3.7552,3352.0,3351.4,2.98377]
[1738334904515,2.98318,3352.2,3351.6,2.98362]
[1738334904809,2.98318,3352.2,3351.4,2.98377]
[1738334904810,0.59662,3352.1,3351.4,2.98377]
[1738334905007,3.0,3352.1,3351.4,2.98377]
[1738334905705,3.0,3352.1,3350.8,0.8102]
[1738334905888,0.7552,3352.2,3351.7,2.98354]
[1738334906090,3.73833,3352.2,3351.7,2.98354]
[1738334906270,3.672129,3352.1,3351.8,0.04331503]
[1738334906685,3.672129,3352.1,3351.7,2.98354]
[1738334906885,3.672129,3352.1,3351.9,0.04330398]
[1738334907111,3.672129,3352.1,3352.0,0.04329293]
[1738334907309,0.672129,3352.1,3352.0,0.04329293]
[1738334907475,0.8038,3352.9,3352.0,0.04329701]
[1738334907806,2.98227,3353.2,3352.6,2.98272]
[1738334907975,0.676814,3353.1,3352.4,2.98292]
[1738334908301,2.98246,3353.0,3352.7,0.04332688]
[1738334908505,2.98246,3353.0,3352.4,2.98292]
[1738334908709,2.98246,3353.0,3352.8,0.04331869]
[1738334908911,0.676814,3353.1,3352.5,2.98283]
[1738334909213,2.9824,3353.0,3352.3,3.80012]
[1738334909408,3.659214,3353.1,3352.6,0.04333508]
[1738334909707,3.659214,3353.1,3352.6,2.98275]
[1738334909911,3.78596,3353.3,3352.3,0.8171]
[1738334909912,3.0,3353.2,3352.7,0.04332688]
[1738334910208,0.8038,3353.3,3352.7,0.04332688]
[1738334910209,0.8038,3353.3,3352.8,2.98257]
[1738334910404,0.8038,3353.3,3352.8,0.04245815]
[1738334910606,2.98208,3353.4,3352.7,2.98264]
[1738334910813,3.0,3353.3,3352.9,0.04244995]
[1738334911106,3.0,3353.3,3353.0,0.04244176]
[1738334911508,3.0,3353.3,3352.8,2.98258]
[1738334911672,2.98215,3353.3,3352.8,2.98258]
[1738334911871,2.98215,3353.3,3352.9,0.04244995]
[1738334912396,0.596401,3353.4,3352.9,3.02492995]
[1738334912577,2.98201,3353.5,3352.9,3.02492995]
[1738334912784,2.9819,3353.6,3352.9,0.04244995]
[1738334912984,3.0,3353.3,3352.8,2.98256]
[1738334913187,3.0,3353.3,3353.0,0.04244176]
[1738334913508,3.0,3353.3,3352.9,0.04244995]
[1738334913509,5.9824,3353.0,3352.9,0.04244995]
[1738334913709,5.9824,3353.0,3351.3,0.7989]
[1738334913710,2.98325,3352.1,3351.3,0.7989]
[1738334913912,3.02059622,3352.0,3351.3,0.7989]
[1738334914116,3.8111,3352.3,3351.5,2.98368]
[1738334914274,2.98326,3352.1,3351.5,2.98368]
[1738334914814,2.98326,3352.1,3351.4,2.98379]
[1738334915010,2.98326,3352.1,3351.5,2.98373]
[1738334915314,0.8111,3352.3,3351.5,2.98373]
[1738334915315,2.98313,3352.2,3351.5,2.98368]
[1738334915469,2.98327,3352.1,3351.3,3.78279]
[1738334915666,2.98352,3351.8,3351.3,0.7989]
[1738334915865,3.660859,3352.2,3351.5,2.98372]
[1738334916125,2.98279,3352.6,3351.3,0.7989]
[1738334916301,2.98343,3351.9,3351.3,0.7989]
[1738334916477,2.98347,3351.8,3351.3,0.7989]
[1738334916897,2.9833,3352.0,3351.3,3.7828]
[1738334917114,5.98321,3352.1,3351.5,2.98367]
[1738334917283,0.35163651,3352.3,3351.5,2.98367]
[1738334917284,3.0,3352.2,3351.5,2.98367]
[1738334917889,2.98326,3352.1,3351.5,2.98367]
[1738334918507,0.0372945,3352.0,3351.3,3.78279]
[1738334918717,2.9834,3351.9,3351.3,3.78279]
[1738334918898,0.0372956,3351.8,3351.3,3.78279]
[1738334919398,0.0372956,3351.8,3351.3,0.7989]
[1738334919610,2.98365,3351.6,3350.9,2.9842]
[1738334919887,0.03729838,3352.3,3351.3,2.98386]
[1738334919888,2.98341,3351.9,3351.3,2.98386]
[1738334920197,2.98358,3351.7,3351.1,2.98405]
[1738334920416,2.98321,3352.1,3351.3,2.9839]
[1738334920725,0.7888,3352.5,3351.7,2.98355]
[1738334920726,2.98311,3352.3,3351.7,2.98355]
[1738334920880,2.98312,3352.2,3351.7,2.98355]
[1738334921278,2.9832,3352.1,3351.6,0.7655]
[1738334921506,2.98312,3352.2,3351.6,3.74908]
[1738334921722,0.7888,3352.5,3351.6,0.7655]
[1738334921919,2.98325,3352.1,3351.6,0.7655]
[1738334922128,0.37888,3352.4,3350.6,0.0075]
[1738334922129,2.98339,3351.9,3351.1,3.77818]